[Event "German Bundesliga 2023-24"]
[Site "Germany"]
[Date "2024.02.25"]
[Round "11.3"]
[White "Baidetskyi, Valentin"]
[Black "Predojevic, Borki"]
[Result "1/2-1/2"]
[ECO "C11"]
[WhiteElo "2471"]
[BlackElo "2580"]
[Annotator "TA"]
[PlyCount "44"]
[EventDate "2023.10.20"]
[EventType "team-tourn"]
[EventCountry "GER"]
[SourceTitle "playchess.com"]
[Source "ChessBase"]
[SourceQuality "1"]
[TimeControl "40/6000+30:3000+30"]

{[%evp 20,44,25,0,0,0,0,0,0,0,0,0,0,0,0,0,0,0,0,0,0,0,0,0,0,0,0]} 1. e4 {[%emt 0:00:08][%cal Be2e4,Be4e5][%mdl 32]} e6 {[%emt 0:00:19]} 2. d4 {[%emt 0:00:15]} d5 {[%emt 0:00:16]} 3. Nc3 {[%emt 0:01:03]} Nf6 {[%emt 0:03:19]} 4. e5 {[%emt 0:01:19]} Nfd7 {[%emt 0:00:13]} 5. f4 {[%emt 0:00:23]} c5 {[%emt 0:00:28]} 6. Nf3 {[%emt 0:00:12]} Nc6 {[%emt 0:00:48]} 7. Be3 {[%emt 0:00:15]} cxd4 {[%emt 0:04:42]} 8. Nxd4 {[%emt 0:03:47]} Qb6 {[%emt 0:01:04]} 9. Na4 {[%emt 0:09:06]} Qa5+ {[%emt 0:03:19]} 10. Nc3 {[%emt 0:00:23][%cal Ba4c3,Bc3b5,Bb5d6][%mdl 32]} Qb6 {[%emt 0:03:14]} 11. Ncb5 {[%emt 0:03:24][%cal Od4f5] Nf5! would now be deadly.} a6 {[%emt 0:06:11] The position is equal.} 12. Nf5 $1 {[%emt 0:00:47]} Bc5 {[%emt 0:02:36]} 13. Nbd6+ $1 {[%emt 0:01:47]} (13. Nxg7+ $2 Kf8 14. Nxe6+ fxe6 15. Bxc5+ Nxc5 $19) 13... Kf8 {[%emt 0:00:28]} 14. Qh5 {[%emt 0:02:04]} Nd8 {[%emt 0:02:49]} 15. Nxg7 {[%emt 0:05:52]} Bxe3 {[%emt 0:02:48]} ({Don't go for} 15... Qxb2 $2 16. Nxe6+ Ke7 17. Qg5+ (17. Bxc5 Qc3+ 18. Kd1 Nxc5 $18) (17. Nxc5 Nxc5 18. Qh4+ Kd7 $18) 17... Nf6 18. Qxf6+ $18 (18. Bxc5 Nxe6 19. Qxf6+ Kd7 $18)) 16. Qh6 {[%emt 0:09:56] [#] White wants to mate with Ngf5+. Dancing on a razor blade.} Ke7 {[%emt 0:03:53] Strongly threatening ...Nxe5.} ({Not} 16... Qxb2 17. Ngf5+ Kg8 18. Ne7#) 17. Ngf5+ {[%emt 0:00:36]} exf5 {[%emt 0:00:07]} 18. Nxf5+ {[%emt 0:00:07]} Ke8 {[%emt 0:00:06]} 19. Nd6+ {[%emt 0:00:12]} Ke7 {[%emt 0:00:11]} 20. Nf5+ {[%emt 0:00:15]} Ke8 {[%emt 0:00:05]} 21. Nd6+ {[%emt 0:00:09]} Ke7 {[%emt 0:00:04]} 22. Nf5+ {[%emt 0:00:08]} Ke8 {[%emt 0:00:05] Not much happened in this game.   Weighted Error Value: White=0.02 (flawless) /Black=0.00 (flawless) .  OK:         	White=3     	Black=3      Best:        	White=5     	Black=3      Strong:       	White=2     	---} 1/2-1/2

[Event "German Bundesliga 2023-24"]
[Site "Germany"]
[Date "2024.02.25"]
[Round "11.4"]
[White "Markus, Robert"]
[Black "Kindermann, Stefan"]
[Result "1-0"]
[ECO "D10"]
[WhiteElo "2582"]
[BlackElo "2444"]
[Annotator "ChessBase"]
[PlyCount "63"]
[EventDate "2023.10.20"]
[EventType "team-tourn"]
[EventCountry "GER"]
[SourceTitle "playchess.com"]
[Source "ChessBase"]
[SourceQuality "1"]
[TimeControl "40/6000+30:3000+30"]

1. d4 {[%emt 0:00:04]} d5 {[%emt 0:00:11]} 2. c4 {[%emt 0:00:07]} c6 {[%emt 0:00:07]} 3. Nc3 {[%emt 0:00:06]} Nf6 {[%emt 0:00:11]} 4. e3 {[%emt 0:00:08]} Bf5 {[%emt 0:01:30]} 5. f3 {[%emt 0:05:07]} e6 {[%emt 0:05:00]} 6. g4 {[%emt 0:00:19]} Bg6 {[%emt 0:00:19]} 7. h4 {[%emt 0:00:44]} h5 {[%emt 0:03:20]} 8. g5 {[%emt 0:00:47]} Nfd7 {[%emt 0:00:11]} 9. Nge2 {[%emt 0:06:46]} Bd6 {[%emt 0:03:33]} 10. Bg2 {[%emt 0:03:55]} O-O {[%emt 0:17:17]} 11. O-O {[%emt 0:02:22]} a6 {[%emt 0:12:47]} 12. b3 {[%emt 0:06:02]} b5 {[%emt 0:01:59]} 13. c5 {[%emt 0:05:39]} Bc7 {[%emt 0:00:31]} 14. f4 {[%emt 0:00:06]} Bf5 {[%emt 0:08:36]} 15. Ng3 {[%emt 0:08:20]} g6 {[%emt 0:02:45]} 16. e4 {[%emt 0:02:58]} Bg4 {[%emt 0:07:34]} 17. Qd2 {[%emt 0:06:00]} dxe4 {[%emt 0:05:21]} 18. Ncxe4 {[%emt 0:03:24]} a5 {[%emt 0:08:30]} 19. Bb2 {[%emt 0:04:28]} Na6 {[%emt 0:02:17]} 20. Qc3 {[%emt 0:04:41]} b4 {[%emt 0:03:41]} 21. Qe3 {[%emt 0:01:08]} Ra7 {[%emt 0:01:28]} 22. Nf2 {[%emt 0:02:58]} Bb8 {[%emt 0:03:12]} 23. Nxg4 {[%emt 0:02:34]} hxg4 {[%emt 0:01:05]} 24. Bxc6 {[%emt 0:04:35]} Nc7 {[%emt 0:00:58]} 25. d5 {[%emt 0:02:42]} Nxd5 {[%emt 0:01:21]} 26. Bxd5 {[%emt 0:02:09]} exd5 {[%emt 0:00:14]} 27. Qd4 {[%emt 0:00:05]} f6 {[%emt 0:00:22]} 28. Qxd5+ {[%emt 0:00:11]} Kh7 {[%emt 0:00:28]} 29. Rad1 {[%emt 0:03:38]} Qe7 {[%emt 0:02:28]} 30. c6 {[%emt 0:07:00]} Qc5+ {[%emt 0:03:47]} 31. Qxc5 {[%emt 0:01:29]} Nxc5 {[%emt 0:00:07]} 32. Bd4 {[%emt 0:00:20]} 1-0

[Event "German Bundesliga 2023-24"]
[Site "Germany"]
[Date "2024.02.25"]
[Round "11.5"]
[White "Hertneck, Gerald"]
[Black "Stevic, Hrvoje"]
[Result "0-1"]
[ECO "D13"]
[WhiteElo "2441"]
[BlackElo "2549"]
[Annotator "TA"]
[PlyCount "86"]
[EventDate "2023.10.20"]
[EventType "team-tourn"]
[EventCountry "GER"]
[SourceTitle "playchess.com"]
[Source "ChessBase"]
[SourceQuality "1"]
[TimeControl "40/6000+30:3000+30"]

{[%evp 17,86,6,13,4,12,0,6,-10,-6,-5,0,-8,-4,0,-4,-8,-8,-7,-7,-4,0,0,0,0,-3,-21,-8,-64,-63,-93,-104,-147,-156,-154,-158,-149,-75,-133,-125,-154,-162,-163,-151,-182,-182,-182,-162,-406,-354,-519,-522,-521,-495,-456,-337,-839,-793,-824,-824,-797,-797,-1157,-1033,-1190,-1060,-851,-727,-2238,-1825,-29976,-11877]} 1. d4 {[%emt 0:00:04]} d5 {[%emt 0:00:11]} 2. Nf3 {[%emt 0:00:07]} Nf6 {[%emt 0:00:35]} 3. c4 {[%emt 0:00:06]} c6 {[%emt 0:00:32]} 4. cxd5 {[%emt 0:00:10]} cxd5 {[%emt 0:00:07]} 5. Nc3 {[%emt 0:00:05]} Nc6 {[%emt 0:00:15]} 6. Bf4 {[%emt 0:00:04]} a6 {[%emt 0:01:05]} 7. e3 {[%emt 0:00:10]} Bg4 {[%emt 0:00:31]} 8. Be2 {[%emt 0:00:34]} e6 {[%emt 0:00:51]} 9. O-O {[%emt 0:01:26]} Bd6 {[%emt 0:06:27]} 10. Ne5 {[%emt 0:19:19]} Bxe2 {[%emt 0:01:05]} 11. Qxe2 {[%emt 0:00:05]} Rc8 {[%emt 0:08:29]} 12. Bg3 {[%emt 0:01:18] The position is equal.} O-O {[%emt 0:07:12]} 13. Rfd1 {[%emt 0:08:37]} Qe7 {[%emt 0:24:01]} 14. f4 {[%emt 0:09:48]} Ne4 {[%emt 0:01:38]} 15. Nxe4 {[%emt 0:01:11]} dxe4 {[%emt 0:00:05]} 16. Nxc6 {[%emt 0:02:03]} Rxc6 {[%emt 0:00:07]} 17. d5 {[%emt 0:00:05]} exd5 {[%emt 0:06:00]} 18. Rxd5 {[%emt 0:01:26]} Rd8 {[%emt 0:16:15]} 19. Rad1 {[%emt 0:00:58]} Bc7 {[%emt 0:00:47]} 20. Rxd8+ {[%emt 0:00:20]} Bxd8 {[%emt 0:00:05]} 21. Rd5 {[%emt 0:38:41]} Rc1+ {[%emt 0:12:37]} 22. Kf2 {[%emt 0:00:06]} (22. Be1 $1 $11) 22... Qc7 $15 {[%emt 0:04:57]} 23. f5 {[%emt 0:06:03]} Qc8 {[%emt 0:00:16][%cal Od8a5]} 24. Bf4 {[%emt 0:00:04]} Bh4+ {[%emt 0:00:35]} 25. g3 {[%emt 0:00:05]} Bf6 {[%emt 0:00:09]} 26. g4 {[%emt 0:02:14]} h6 {[%emt 0:01:42]} (26... g5 $142 $1 {[%cal Rg5f4]} 27. fxg6 hxg6) 27. Rd1 {[%emt 0:00:55] [#]} (27. Kg3 $142) 27... Bxb2 $1 $17 {[%emt 0:01:45][%mdl 512]} 28. Kg3 {[%emt 0:01:10]} (28. h4 h5) 28... Bf6 {[%emt 0:02:34]} 29. h4 {[%emt 0:00:23]} Rxd1 {[%emt 0:01:54]} 30. Qxd1 {[%emt 0:00:06] [#]} Qd8 $1 {[%emt 0:00:01]} 31. Qxd8+ {[%emt 0:02:53]} Bxd8 $19 {[%emt 0:00:03][%mdl 4096] Endgame. KB-KB} 32. g5 $2 {[%emt 0:08:30]} (32. Bd6) 32... hxg5 {[%emt 0:08:27]} 33. Bxg5 {[%emt 0:00:28]} f6 {[%emt 0:01:56]} 34. Bf4 {[%emt 0:00:06] [#]} Bb6 $1 {[%emt 0:00:12]} 35. h5 {[%emt 0:00:07]} Bc5 {[%emt 0:00:20]} 36. Kf2 $2 {[%emt 0:01:31]} (36. h6) 36... b5 {[%emt 0:00:08]} 37. Ke2 {[%emt 0:00:04]} a5 {[%emt 0:00:55]} 38. Kd2 {[%emt 0:00:18]} b4 {[%emt 0:00:14]} 39. Kc2 {[%emt 0:00:03]} a4 {[%emt 0:00:02]} 40. Kb2 {[%emt 0:00:12]} Kf7 {[%emt 0:00:14]} 41. Kc2 {[%emt 0:52:01]} Ke8 {[%emt 0:50:35] ...Kd7 would now be deadly.} 42. h6 {[%emt 0:00:52]} gxh6 {[%emt 0:02:28] aiming for ...h5.} 43. Bxh6 {[%emt 0:04:01]} Bd6 {[%emt 0:00:04] Weighted Error Value: White=0.79/Black=0.10 (very precise) .  Mistake:       	White=4     	Black=1      Inaccurate:     	White=3     	---        OK:         	White=8     	Black=10     Best:        	---       	Black=2      Strong:       	---       	Black=2      Brilliant:      	---       	Black=1} 0-1

[Event "German Bundesliga 2023-24"]
[Site "Germany"]
[Date "2024.02.25"]
[Round "11.6"]
[White "Jovanovic, Zoran"]
[Black "Zysk, Robert"]
[Result "1-0"]
[ECO "C13"]
[WhiteElo "2513"]
[BlackElo "2388"]
[Annotator "TA"]
[PlyCount "85"]
[EventDate "2023.10.20"]
[EventType "team-tourn"]
[EventCountry "GER"]
[SourceTitle "playchess.com"]
[Source "ChessBase"]
[SourceQuality "1"]
[TimeControl "40/6000+30:3000+30"]

{[%evp 12,85,25,19,22,14,27,35,45,45,44,30,72,62,106,103,83,78,105,27,33,31,30,52,47,47,46,22,46,3,38,30,65,52,47,42,50,39,78,66,114,109,199,190,190,202,226,235,239,174,480,306,311,290,307,308,449,458,446,448,432,448,779,744,1086,1052,1008,1113,1104,1116,1251,1299,1343,1282,1441,1263]} 1. e4 {[%emt 0:00:01]} e6 {[%emt 0:00:05]} 2. d4 {[%emt 0:00:03]} d5 {[%emt 0:00:03]} 3. Nc3 {[%emt 0:00:04]} Nf6 {[%emt 0:00:08]} 4. Bg5 {[%emt 0:00:04]} dxe4 5. Nxe4 {[%emt 0:00:01]} Nbd7 {[%emt 0:01:29]} 6. Nf3 {[%emt 0:00:55]} h6 {[%emt 0:02:29]} 7. Bxf6 {[%emt 0:04:27]} Nxf6 {[%emt 0:01:05]} 8. Bd3 {[%emt 0:00:01]} Be7 {[%emt 0:18:38]} 9. Qe2 {[%emt 0:02:15]} Nxe4 {[%emt 0:17:27] White is slightly better.} 10. Bxe4 {[%emt 0:01:06]} c5 {[%emt 0:11:26]} 11. O-O-O {[%emt 0:36:57]} O-O {[%emt 0:11:30]} 12. dxc5 {[%emt 0:01:37]} Qc7 {[%emt 0:02:01][%cal Oa8b8] [#] Black is weak on the light squares} 13. Ne5 $1 {[%emt 0:01:35][%mdl 512]} Bxc5 {[%emt 0:09:08]} (13... Qxe5 $2 14. Bh7+ Kxh7 15. Qxe5 $18) (13... Bf6 14. f4) 14. f4 {[%emt 0:01:33]} Bd6 {[%emt 0:10:33][%cal Of8d8]} 15. g3 {[%emt 0:01:38] White is much more active. The black rooks are passive.} ({Better is} 15. g4 $16) 15... Bxe5 $11 {[%emt 0:06:18]} 16. fxe5 {[%emt 0:01:53]} Bd7 {[%emt 0:00:39][%cal Od7c6]} (16... Qxe5 $2 17. Bh7+ Kxh7 18. Qxe5 $18) 17. Rd6 {[%emt 0:00:15]} Bc6 {[%emt 0:00:55]} 18. Bxc6 {[%emt 0:04:34]} bxc6 {[%emt 0:00:05]} 19. Rf1 {[%emt 0:08:40]} Rab8 {[%emt 0:01:31]} 20. Rf4 {[%emt 0:04:20]} Qa5 {[%emt 0:01:25]} 21. a4 {[%emt 0:03:30]} (21. Rxc6 $2 {is the wrong capture.} Qxa2 22. b4 a5 $19) 21... Rb4 {[%emt 0:01:31]} 22. b3 {[%emt 0:08:17]} Rxf4 {[%emt 0:02:23]} 23. gxf4 $14 {[%emt 0:00:14][%mdl 4096] Endgame. KQR-KQR} Qc3 {[%emt 0:00:58]} 24. Kb1 {[%emt 0:02:33] Wards off Qa1+} Rb8 {[%emt 0:03:21]} 25. Qd3 {[%emt 0:01:31] White now steadily converts the win.} Qe1+ {[%emt 0:03:56]} (25... Qxd3 $14 26. Rxd3 g5) 26. Kb2 $16 {[%emt 0:01:56]} Qh4 {[%emt 0:00:22]} (26... Qg1 $16) 27. Qg3 $36 {[%emt 0:00:48][%mdl 2048] Keeping Black busy.} ({Inferior is} 27. Rxc6 Qxf4 28. Qd6 Rb7 $11) 27... Qe7 {[%emt 0:01:31]} 28. Rxc6 {[%emt 0:00:57]} Rd8 {[%emt 0:00:05]} 29. Qe3 {[%emt 0:03:50]} g6 {[%emt 0:01:37]} 30. Rc4 {[%emt 0:03:51]} Qh4 $2 {[%emt 0:00:39]} (30... Qb7 31. Qc5 Qb8) 31. h3 {[%emt 0:04:31]} Qe7 {[%emt 0:00:17]} 32. Qc5 {[%emt 0:00:29]} Qxc5 {[%emt 0:00:44]} 33. Rxc5 {[%emt 0:00:02] KR-KR} g5 {[%emt 0:00:06]} (33... Rd7 $142 34. b4 Kg7) 34. fxg5 {[%emt 0:00:16] White is clearly winning.} hxg5 {[%emt 0:00:02]} 35. a5 {[%emt 0:00:38]} Kg7 {[%emt 0:00:58]} 36. b4 {[%emt 0:00:56]} Rh8 {[%emt 0:00:39]} (36... a6 $142 37. Rc6 Rb8) 37. Rc7 {[%emt 0:00:57]} Rh4 {[%emt 0:01:09]} 38. c3 {[%emt 0:01:42]} (38. Rxa7 Rxb4+ 39. Kc3 Rh4 $18) 38... a6 {[%emt 0:00:08]} 39. Rc6 {[%emt 0:01:11]} Rxh3 {[%emt 0:00:47]} 40. Rxa6 {[%emt 0:00:01]} g4 {[%emt 0:00:57][%cal Bg5g4,Bg4g3][%mdl 32]} 41. Rd6 {[%emt 0:50:05]} g3 {[%emt 0:50:39]} 42. Rd1 {[%emt 0:00:13]} Kg6 {[%emt 0:00:27]} 43. a6 {[%emt 0:00:58] Weighted Error Value: White=0.16 (very precise) /Black=0.36.  Mistake:       	White=1     	Black=5      Inaccurate:     	White=2     	Black=6      OK:         	White=10    	Black=7      Best:        	White=5     	Black=2      Brilliant:      	White=1     	---} 1-0

[Event "German Bundesliga 2023-24"]
[Site "Germany"]
[Date "2024.02.25"]
[Round "11.7"]
[White "Kruckenhauser, Arthur"]
[Black "Kovacevic, Aleksandar"]
[Result "1/2-1/2"]
[ECO "B23"]
[WhiteElo "2313"]
[BlackElo "2445"]
[Annotator "TA"]
[PlyCount "131"]
[EventDate "2023.10.20"]
[EventType "team-tourn"]
[EventCountry "GER"]
[SourceTitle "playchess.com"]
[Source "ChessBase"]
[SourceQuality "1"]
[TimeControl "40/6000+30:3000+30"]

{[%evp 48,131,-205,-221,-231,-225,-225,-223,-157,-158,-160,-159,0,-60,0,-231,-224,-232,-226,-212,-178,-207,-182,-185,-180,-170,-162,-165,-170,-343,-345,-354,-366,-346,-187,-179,-177,-175,-181,-205,-208,-200,-215,-221,-231,-228,-197,-208,-214,-357,-343,-360,-365,-415,-391,-12820,-12831,-5393,-729,-6023,-423,-29976,-61,-60,-60,-61,-60,-54,-54,-186,-8,-8,-8,-71,-70,-70,-70,-67,-14,-28,0,0,0,0,0,0]} 1. e4 {[%emt 0:00:05]} c5 {[%emt 0:00:26]} 2. Nc3 {[%emt 0:00:45]} d6 {[%emt 0:00:28]} 3. Bb5+ {[%emt 0:00:18]} Nd7 {[%emt 0:00:52]} 4. a4 {[%emt 0:00:08]} a6 {[%emt 0:00:54]} 5. Be2 {[%emt 0:00:07]} Ngf6 {[%emt 0:01:38]} 6. f4 {[%emt 0:01:15]} e6 {[%emt 0:09:06]} 7. Nf3 {[%emt 0:01:07]} b6 {[%emt 0:00:50]} 8. O-O {[%emt 0:02:06]} Bb7 {[%emt 0:00:40]} 9. d3 {[%emt 0:00:56]} Be7 {[%emt 0:01:52]} 10. Qe1 {[%emt 0:08:57]} O-O {[%emt 0:03:33]} 11. Nd1 {[%emt 0:14:51]} c4 {[%emt 0:06:41]} 12. e5 {[%emt 0:10:40]} cxd3 {[%emt 0:03:13]} 13. Bxd3 {[%emt 0:00:42]} Ne8 {[%emt 0:13:57]} 14. b4 {[%emt 0:12:34]} a5 {[%emt 0:01:42]} 15. c3 {[%emt 0:00:28]} g6 {[%emt 0:13:39]} 16. Be4 {[%emt 0:12:20]} Bxe4 {[%emt 0:08:14]} 17. Qxe4 {[%emt 0:00:09]} Rc8 {[%emt 0:00:08]} 18. Bd2 {[%emt 0:06:19]} axb4 {[%emt 0:05:24]} 19. cxb4 {[%emt 0:01:17]} dxe5 {[%emt 0:04:59]} 20. fxe5 {[%emt 0:02:06]} Nxe5 {[%emt 0:06:24]} 21. Qxe5 {[%emt 0:18:37]} Bf6 {[%emt 0:00:11]} 22. Bg5 {[%emt 0:00:05]} Bxe5 {[%emt 0:00:11]} 23. Bxd8 {[%emt 0:00:07]} Bxa1 {[%emt 0:00:09]} 24. Bxb6 {[%emt 0:01:21]} Nf6 {[%emt 0:06:11]} 25. Ne3 {[%emt 0:04:02]} Bc3 {[%emt 0:01:23]} 26. Bc5 {[%emt 0:01:45]} Rfd8 {[%emt 0:02:24]} 27. Nd1 {[%emt 0:00:54]} Ba1 {[%emt 0:03:56]} 28. Ne3 {[%emt 0:00:34] [#]} Bb2 $1 {[%emt 0:03:43]} 29. Nd1 {[%emt 0:02:05]} Ba1 {[%emt 0:04:31]} (29... Rxc5 $17 30. bxc5 Ba3) 30. Ne3 $15 {[%emt 0:00:09]} Bc3 $2 {[%emt 0:00:25]} (30... Rxc5 $1 $15 31. bxc5 Bc3) 31. Nd1 $19 {[%emt 0:00:17]} Ne4 {[%emt 0:00:26]} 32. Nxc3 {[%emt 0:00:36]} Nxc3 {[%emt 0:00:26]} 33. a5 {[%emt 0:00:46]} Rd5 {[%emt 0:04:06]} 34. a6 {[%emt 0:02:46]} Na4 {[%emt 0:00:43]} 35. Bd4 {[%emt 0:01:32]} Ra8 {[%emt 0:00:57]} 36. a7 {[%emt 0:00:58]} Rb5 {[%emt 0:00:49]} 37. Rb1 {[%emt 0:02:07]} f6 {[%emt 0:00:44]} ({Inferior is} 37... Nb6 38. Ne5 $11) 38. Nd2 $2 {[%emt 0:01:20]} (38. Bxf6 Rxa7 39. Bd4) 38... e5 $19 {[%emt 0:00:25]} 39. Be3 {[%emt 0:00:10]} Nc3 {[%emt 0:01:58]} 40. Rb3 {[%emt 0:02:25]} Nd5 {[%emt 0:00:02]} (40... Ne2+ $142 41. Kf1 Nd4 42. Bxd4 exd4) 41. Bc5 $19 {[%emt 0:50:38]} Rxc5 {[%emt 0:09:19]} 42. bxc5 {[%emt 0:00:00]} Rxa7 {[%emt 0:00:05]} 43. c6 {[%emt 0:00:00]} Ra1+ {[%emt 0:06:30]} 44. Kf2 {[%emt 0:00:00]} Rc1 {[%emt 0:00:10]} 45. Rb8+ {[%emt 0:00:00]} Kf7 {[%emt 0:00:19]} 46. Rb7+ {[%emt 0:00:00]} Ke6 {[%emt 0:01:11]} 47. Rxh7 {[%emt 0:00:00]} Rxc6 {[%emt 0:00:14]} 48. h4 {[%emt 0:00:00]} (48. g3 {is the only way for White.}) 48... Rc2 $19 {[%emt 0:00:59]} 49. Ke1 {[%emt 0:00:00]} Nc3 {[%emt 0:03:23]} ({Less strong is} 49... Ne3 50. g3 $17) 50. h5 {[%emt 0:00:00]} e4 {[%emt 0:01:22]} 51. hxg6 $2 {[%emt 0:00:00]} (51. Nc4 gxh5 (51... Rxg2 $2 52. Kf1 $19) 52. Rxh5) 51... e3 $19 {[%emt 0:01:08]} 52. Nb3 {[%emt 0:00:00]} Rxg2 {[%emt 0:01:04]} (52... Rb2 $142 53. Nc5+ Kd5) 53. Nd4+ {[%emt 0:00:00]} Kd5 {[%emt 0:00:18]} (53... Ke5 $142 {[%cal Rg2g1]} 54. Nf3+ Kf4) 54. Kf1 {[%emt 0:00:00]} (54. Rd7+ $19 Ke4 55. Kf1 Rxg6 56. Nc2) 54... Rxg6 $2 {[%emt 0:14:46]} (54... Rf2+ {mates} 55. Ke1 Kxd4 56. Re7 Rc2 57. Kf1 e2+ 58. Kf2 Ne4+ 59. Rxe4+ Kxe4 60. g7 e1=R+ 61. Kxe1 Rg2 62. Kf1 Rxg7 63. Kf2 Rg8 (63... Rg2+ {is a self mate.} 64. Kxg2 f5 65. Kh3 Ke3 66. Kg2 f4 67. Kf1 Kf3 68. Ke1 Kg2 69. Ke2 f3+ 70. Kd3 f2 71. Ke4 f1=Q 72. Kd5 Kf3 73. Kd6 Ke4 74. Kc6 Qc4+ 75. Kd6 Kf5 76. Kd7 Ke5 77. Ke8 Ke6 78. Kf8 Qg4 79. Ke8 Qg8#) 64. Ke2 Rg2+ 65. Kf1 Rc2 66. Ke1 Ke3 67. Kf1 Ra2 68. Kg1 Kf3 69. Kh1 Kg3 70. Kg1 Ra1#) 55. Nc2 $1 $15 {[%emt 0:00:00]} Rg3 {[%emt 0:03:06]} 56. Re7 $1 {[%emt 0:00:00]} e2+ {[%emt 0:05:31]} 57. Kf2 {[%emt 0:00:21]} Rh3 {[%emt 0:01:25]} 58. Rc7 {[%emt 0:02:58]} (58. Ke1 $1 $15) 58... f5 $2 {[%emt 0:05:25]} (58... Ke4 $19 {Hoping for ...Rf3+.} 59. Ne1 Nb5 60. Re7+ Kf4 61. Ng2+ Kg4 62. Rg7+ Kf5 63. Kxe2 Nc3+ 64. Kd2 Nd5) 59. Kg2 $1 $11 {[%emt 0:00:28]} Kd6 {[%emt 0:00:29]} 60. Rc8 {[%emt 0:00:51]} (60. Kxh3 $11 Kxc7 61. Kg3) 60... Re3 $1 $17 {[%emt 0:01:14]} 61. Kf2 $1 {[%emt 0:01:09]} Nd1+ $1 {[%emt 0:01:08]} 62. Ke1 {[%emt 0:00:03]} Re5 {[%emt 0:00:55]} (62... Re4 $15 63. Rd8+ Ke7) 63. Nd4 {[%emt 0:00:56]} f4 {[%emt 0:02:25]} 64. Nxe2 {[%emt 0:00:09]} f3 {[%emt 0:00:33]} 65. Kxd1 {[%emt 0:00:19]} Rxe2 {[%emt 0:00:21]} 66. Rc3 {[%emt 0:00:18]} 1/2-1/2

[Event "German Bundesliga 2023-24"]
[Site "Germany"]
[Date "2024.02.25"]
[Round "11.8"]
[White "Zelcic, Robert"]
[Black "Zeller, Frank"]
[Result "1-0"]
[ECO "C56"]
[WhiteElo "2476"]
[BlackElo "2335"]
[Annotator "RC"]
[PlyCount "71"]
[EventDate "2023.10.20"]
[EventType "team-tourn"]
[EventCountry "GER"]
[SourceTitle "playchess.com"]
[Source "ChessBase"]
[SourceQuality "1"]
[TimeControl "40/6000+30:3000+30"]

1. e4 {[%emt 0:00:03]} e5 {[%emt 0:00:11]} 2. Nf3 {[%emt 0:00:06]} Nc6 {[%emt 0:00:06]} 3. Bc4 {[%emt 0:00:26]} Nf6 {[%emt 0:00:19]} 4. d4 {[%emt 0:00:04]} exd4 {[%emt 0:00:19]} 5. e5 {[%emt 0:00:06]} d5 {[%emt 0:00:17]} 6. Bb5 {[%emt 0:00:04]} Nd7 {[%emt 0:00:47]} 7. Bxc6 {[%emt 0:00:07]} bxc6 {[%emt 0:00:07]} 8. Nxd4 {[%emt 0:00:14]} Nxe5 {[%emt 0:04:08]} 9. O-O {[%emt 0:00:07]} Bd6 {[%emt 0:00:57]} 10. f4 {[%emt 0:05:23]} Ng4 {[%emt 0:01:42]} 11. h3 {[%emt 0:58:36]} Nf6 {[%emt 0:07:50]} 12. Nxc6 {[%emt 0:00:23]} Bc5+ {[%emt 0:01:07]} 13. Kh2 {[%emt 0:01:52]} Qd6 {[%emt 0:01:00]} 14. Ne5 {[%emt 0:06:26]} O-O {[%emt 0:05:16]} 15. Qf3 {[%emt 0:03:40]} Rb8 {[%emt 0:08:32]} 16. Nd3 {[%emt 0:06:54]} Bb6 {[%emt 0:03:21]} 17. b3 {[%emt 0:00:35]} Bb7 {[%emt 0:00:38]} 18. Ba3 {[%emt 0:03:25]} c5 {[%emt 0:00:14]} 19. b4 {[%emt 0:00:07]} c4 {[%emt 0:12:37]} 20. b5 {[%emt 0:00:01]} Qc7 {[%emt 0:17:06]} 21. Bxf8 {[%emt 0:01:01]} d4 {[%emt 0:11:06]} 22. Qg3 {[%emt 0:02:38]} Rxf8 {[%emt 0:00:22]} 23. Ne5 {[%emt 0:00:06]} Ne4 {[%emt 0:00:13]} 24. Qe1 {[%emt 0:00:37]} Re8 {[%emt 0:05:13]} 25. Na3 {[%emt 0:17:55]} Rxe5 {[%emt 0:12:15]} 26. fxe5 {[%emt 0:00:01]} Qxe5+ {[%emt 0:00:07]} 27. g3 {[%emt 0:00:01]} Qd5 {[%emt 0:09:44]} 28. Rf4 {[%emt 0:00:59]} f5 {[%emt 0:02:50]} 29. Qf1 {[%emt 0:00:19]} Nd6 {[%emt 0:03:08]} 30. Re1 {[%emt 0:00:40]} d3 {[%emt 0:00:50]} 31. Nxc4 {[%emt 0:01:03]} Nxc4 {[%emt 0:02:10]} 32. Rxf5 {[%emt 0:00:06]} Qd8 {[%emt 0:00:35]} 33. Qxd3 {[%emt 0:00:15]} g6 {[%emt 0:01:17]} 34. Qxc4+ {[%emt 0:01:04]} Kg7 {[%emt 0:00:21]} 35. Qf7+ {[%emt 0:00:09]} Kh6 {[%emt 0:00:07]} 36. Qf8+ {[%emt 0:00:08]} 1-0